fUST/lending_fUST_20240714
["ID","MTS","AMOUNT","RATE_DAILY","PERIOD"]
[331991362,1720926647337,-500.0,0.00025479,2]
[331991364,1720926647346,-500.0,0.00025479,2]
[331991366,1720926647356,-500.0,0.00025479,2]
[331991368,1720926647366,-530.89,0.00025479,2]
[331991370,1720926647376,-577.31965211,0.00025479,2]
[331991372,1720926647385,-405.2640276,0.00025479,2]
[331993140,1720927357062,803.36733613,0.00014999,2]
[331993142,1720927486347,5008.84762182,0.00014999,2]
[331993145,1720927547119,-246.90190476,0.00018,2]
[331993146,1720927547140,-197.47648542,0.00019039,2]
[331993147,1720927547161,-350.31218514,0.0002,2]
[331993148,1720927547182,-285.0,0.00021095,2]
[331993149,1720927547205,-182.88,0.00021095,2]
[331993150,1720927547226,-232.25671883,0.00021096,2]
[331993152,1720927627120,-197.47648542,0.00019039,2]
[331993153,1720927627141,-154.55950541,0.00019165,2]
[331993154,1720927627164,-215.05524017,0.00021096,2]
[331993155,1720927627185,-633.661333,0.00021096,2]
[331993156,1720927627206,-236.0428411,0.00021096,2]
[331993157,1720927627227,-794.15440544,0.00021096,2]
[331993158,1720927640100,-76.92756521,0.00021096,2]
[331993159,1720927640122,-162.130558,0.00021415,2]
[331993160,1720927640143,-378.41841703,0.00022,2]
[331993161,1720927640166,-95.08807876,0.00022397,2]
[331993165,1720927750100,-1089.30374279,0.00018996,2]
[331993166,1720927750123,-232.29121549,0.00021,2]
[331993167,1720927750145,-502.70349642,0.000212,2]
[331993170,1720927754124,-166.666666,0.00021918,2]
[331993171,1720927754146,-45.897953,0.0002225,2]
[331993176,1720927819716,1066.1731197,0.00021917,2]
[331993189,1720927839480,-1221.27299703,0.0002225,2]
[331993190,1720927839490,-500.0,0.0002225,2]
[331993191,1720927839500,-71.12692524,0.00022397,2]
[331993192,1720927839512,-166.215004,0.00022514,2]
[331993193,1720927839522,-166.215004,0.0002263,2]
[331993194,1720927839531,-166.215004,0.00022747,2]
[331993195,1720927839541,-166.215004,0.00022864,2]
[331993196,1720927839552,-300.0,0.00022926,2]
[331993197,1720927839561,-300.0,0.00022926,2]
[331993198,1720927839571,-24900.0,0.00022927,2]
[331993199,1720927839581,-166.215004,0.0002298,2]
[331993200,1720927839592,-1278.04785439,0.00023,2]
[331993201,1720927839601,-166.215004,0.00023097,2]
[331993202,1720927839611,-159.58890294,0.00023214,2]
[331993203,1720927839623,-6.62610106,0.00023214,2]
[331993204,1720927839633,-166.215004,0.00023331,2]
[331993205,1720927839643,-166.215004,0.00023447,2]
[331993206,1720927839652,-166.215004,0.00023564,2]
[331993207,1720927839662,-238.86649568,0.00023968,2]
[331993208,1720927839671,-1089.30374279,0.00023996,2]
[331993209,1720927839681,-425.81089922,0.00024207,2]
[331993210,1720927839691,-500.0,0.00024207,2]
[331993211,1720927839700,-479.15566776,0.00024207,2]
[331993212,1720927839709,-500.0,0.00024207,2]
[331993213,1720927839719,-432.59207434,0.00024207,2]
[331993214,1720927839729,-500.0,0.00024207,2]
[331993215,1720927839738,-500.0,0.00024207,2]
[331993216,1720927839747,-460.6491426,0.00024207,2]
[331993217,1720927839757,-154.56721181,0.00024481,2]
[331993218,1720927839766,-153.0,0.00024496,2]
[331993219,1720927839776,-153.0,0.00024496,2]
[331993220,1720927839787,-153.0,0.00024496,2]
[331993221,1720927839798,-153.0,0.00024496,2]
[331993222,1720927839808,-153.7483912,0.00024496,2]
[331993223,1720927839817,-2778.67346407,0.00024557,2]
[331993224,1720927839827,-108.63509747,0.00024647,3]
[331993227,1720927841083,-1745.64420951,0.00024647,3]
[331993228,1720927841092,-500.0,0.00024657,2]
[331993229,1720927841102,-500.0,0.00024657,2]
[331993230,1720927841111,-500.0,0.00024657,2]
[331993231,1720927841120,-500.0,0.00024657,2]
[331993232,1720927841130,-500.0,0.00024657,2]
[331993233,1720927841139,-500.0,0.00024657,2]
[331993234,1720927841149,-500.0,0.00024657,2]
[331993235,1720927841159,-500.0,0.00024657,2]
[331993236,1720927841168,-500.0,0.00024657,2]
[331993237,1720927841178,-500.0,0.00024657,2]
[331993238,1720927841188,-1500.0,0.00024657,2]
[331993239,1720927841197,-500.0,0.00024657,2]
[331993240,1720927841206,-500.0,0.00024657,2]
[331993241,1720927841216,-500.0,0.00024657,2]
[331993242,1720927841227,-500.0,0.00024657,2]
[331993243,1720927841237,-500.0,0.00024657,2]
[331993244,1720927841246,-500.0,0.00024657,2]
[331993245,1720927841255,-502.70997491,0.00024657,2]
[331993246,1720927841264,-1606.09,0.00024657,2]
[331993247,1720927841274,-502.05531911,0.00024657,2]
[331993248,1720927841283,-500.0,0.00024657,2]
[331993249,1720927841293,-500.0,0.00024657,2]
[331993250,1720927841302,-500.0,0.00024657,2]
[331993251,1720927841312,-500.0,0.00024657,2]
[331993252,1720927841321,-500.0,0.00024657,2]
[331993253,1720927841331,-513.81559807,0.00024657,2]
[331993254,1720927841340,-500.0,0.00024657,2]
[331993255,1720927841349,-500.0,0.00024657,2]
[331993256,1720927841360,-538.41600805,0.00024657,2]
[331993257,1720927841369,-500.0,0.00024657,2]
[331993258,1720927841379,-200.0,0.00024657,2]
[331993259,1720927841388,-500.0,0.00024657,2]
[331993260,1720927841397,-500.0,0.00024657,2]
[331993261,1720927841406,-500.0,0.00024657,2]
[331993262,1720927841415,-500.0,0.00024657,2]
[331993263,1720927841425,-504.73535009,0.00024657,2]
[331993264,1720927841434,-500.0,0.00024657,2]
[331993265,1720927841443,-520.89545066,0.00024657,2]
[331993266,1720927841452,-500.0,0.00024657,2]
[331993267,1720927841461,-500.0,0.00024657,2]
[331993268,1720927841470,-500.0,0.00024657,2]
[331993269,1720927841480,-522.5750881,0.00024657,2]
[331993270,1720927841489,-500.0,0.00024657,2]
[331993271,1720927841498,-500.0,0.00024657,2]
[331993272,1720927841509,-158.99379332,0.00024657,2]
[331993273,1720927841521,-641.76,0.00024657,2]
[331993274,1720927841530,-500.0,0.00024657,2]
[331993275,1720927841540,-519.82532244,0.00024657,2]
[331993276,1720927841550,-500.0,0.00024657,2]
[331993277,1720927841559,-208.80157291,0.00024657,2]
[331993278,1720927841569,-500.0,0.00024657,2]
[331993279,1720927841578,-500.0,0.00024657,2]
[331993280,1720927841589,-513.09583869,0.00024657,2]
[331993281,1720927841599,-500.0,0.00024657,2]
[331993282,1720927841608,-226.59551235,0.00024657,2]
[331993283,1720927841617,-500.0,0.00024657,2]
[331993284,1720927841627,-503.01968021,0.00024657,2]
[331993285,1720927841638,-500.0,0.00024657,2]
[331993286,1720927841648,-500.0,0.00024657,2]
[331993287,1720927841660,-500.0,0.00024657,2]
[331993288,1720927841669,-500.0,0.00024657,2]
[331993289,1720927841679,-200.0,0.00024657,7]
[331993290,1720927841689,-500.0,0.00024657,2]
[331993291,1720927841700,-500.0,0.00024657,2]
[331993292,1720927841711,-500.0,0.00024657,2]
[331993293,1720927841720,-500.0,0.00024657,2]
[331993294,1720927841730,-500.0,0.00024657,2]
[331993295,1720927841739,-500.0,0.00024657,2]
[331993296,1720927841748,-520.26653648,0.00024657,2]
[331993297,1720927841757,-500.0,0.00024657,2]
[331993298,1720927841766,-500.0,0.00024657,2]
[331993299,1720927841775,-505.96119724,0.00024657,2]
[331993300,1720927841786,-500.0,0.00024657,2]
[331993301,1720927841796,-500.0,0.00024657,2]
[331993302,1720927841805,-352.71309419,0.00024657,2]
[331993303,1720927841816,-500.0,0.00024657,2]
[331993304,1720927841827,-985.55,0.00024657,2]
[331993305,1720927841837,-500.0,0.00024657,2]
[331993306,1720927841846,-500.0,0.00024657,2]
[331993307,1720927841858,-500.0,0.00024657,2]
[331993308,1720927841868,-500.0,0.00024657,2]
[331993309,1720927841878,-500.0,0.00024657,2]
[331993310,1720927841887,-500.0,0.00024657,2]
[331993311,1720927841897,-500.0,0.00024657,2]
[331993312,1720927841907,-500.0,0.00024657,2]
[331993313,1720927841917,-509.10342725,0.00024657,2]
[331993314,1720927841928,-532.85239519,0.00024657,2]
[331993315,1720927841937,-500.0,0.00024657,2]
[331993316,1720927841948,-526.76,0.00024657,2]
[331993317,1720927841958,-500.0,0.00024657,2]
[331993318,1720927841968,-500.0,0.00024657,2]
[331993319,1720927841979,-500.0,0.00024657,2]
[331993320,1720927841988,-500.0,0.00024657,2]
[331993321,1720927841998,-500.0,0.00024657,2]
[331993322,1720927842007,-500.0,0.00024657,2]
[331993323,1720927842017,-501.15843166,0.00024657,2]
[331993324,1720927842027,-527.50871391,0.00024657,2]
[331993325,1720927842036,-500.0,0.00024657,2]
[331993326,1720927842046,-500.0,0.00024657,2]
[331993327,1720927842056,-500.0,0.00024657,2]
[331993328,1720927842065,-554.16443324,0.00024657,2]
[331993329,1720927842075,-500.0,0.00024657,2]
[331993330,1720927842084,-500.0,0.00024657,2]
[331993331,1720927842094,-500.0,0.00024657,2]
[331993332,1720927842103,-500.0,0.00024657,2]
[331993333,1720927842113,-500.0,0.00024657,2]
[331993334,1720927842122,-500.0,0.00024657,2]
[331993335,1720927842132,-500.0,0.00024657,2]
[331993336,1720927842141,-500.0,0.00024657,2]
[331993337,1720927842151,-500.0,0.00024657,2]
[331993338,1720927842160,-512.06036937,0.00024657,2]
[331993339,1720927842170,-500.0,0.00024657,2]
[331993340,1720927842180,-279.55542492,0.00024657,2]
[331993341,1720927842189,-505.37521324,0.00024657,2]
[331993342,1720927842198,-500.0,0.00024657,2]
[331993343,1720927842208,-500.0,0.00024657,2]
[331993344,1720927842218,-229.46317167,0.00024657,2]
[331993345,1720927842231,-500.0,0.00024657,2]
[331993346,1720927842241,-500.0,0.00024657,2]
[331993347,1720927842250,-500.0,0.00024657,2]
[331993348,1720927842262,-500.0,0.00024657,2]
[331993349,1720927842275,-500.0,0.00024657,2]
[331993350,1720927842284,-500.0,0.00024657,2]
[331993351,1720927842293,-509.96264445,0.00024657,2]
[331993352,1720927842302,-500.0,0.00024657,2]
[331993353,1720927842311,-162.28163668,0.00024657,2]
[331993354,1720927842321,-500.0,0.00024657,2]
[331993355,1720927842330,-500.0,0.00024657,2]
[331993356,1720927842340,-500.0,0.00024657,2]
[331993357,1720927842349,-500.0,0.00024657,2]
[331993358,1720927842358,-780.37,0.00024657,2]
[331993359,1720927842368,-500.0,0.00024657,2]
[331993360,1720927842377,-541.56,0.00024657,2]
[331993361,1720927842387,-500.0,0.00024657,2]
[331993362,1720927842396,-500.0,0.00024657,2]
[331993363,1720927842406,-500.0,0.00024657,2]
[331993364,1720927842416,-500.0,0.00024657,2]
[331993365,1720927842425,-500.0,0.00024657,2]
[331993366,1720927842435,-500.0,0.00024657,2]
[331993367,1720927842445,-500.0,0.00024657,2]
[331993368,1720927842454,-500.0,0.00024657,2]
[331993369,1720927842464,-500.0,0.00024657,2]
[331993370,1720927842475,-500.0,0.00024657,2]
[331993371,1720927842484,-500.0,0.00024657,2]
[331993372,1720927842494,-500.0,0.00024657,2]
[331993373,1720927842504,-500.0,0.00024657,2]
[331993374,1720927842516,-2763.72,0.00024657,2]
[331993375,1720927842525,-500.0,0.00024657,2]
[331993376,1720927842535,-500.0,0.00024657,2]
[331993377,1720927842544,-1104.36,0.00024657,2]
[331993378,1720927842553,-500.0,0.00024657,2]
[331993379,1720927842563,-500.0,0.00024657,2]
[331993380,1720927842573,-500.0,0.00024657,2]
[331993381,1720927842583,-500.0,0.00024657,2]
[331993382,1720927842594,-500.0,0.00024657,2]
[331993383,1720927842604,-500.0,0.00024657,2]
[331993384,1720927842613,-500.0,0.00024657,2]
[331993385,1720927842622,-500.0,0.00024657,2]
[331993386,1720927842632,-500.0,0.00024657,2]
[331993387,1720927842642,-912.55,0.00024657,2]
[331993388,1720927842652,-500.0,0.00024657,2]
[331993389,1720927842661,-674.99,0.00024657,2]
[331993390,1720927842670,-500.0,0.00024657,2]
[331993391,1720927842680,-500.0,0.00024657,2]
[331993392,1720927842690,-500.0,0.00024657,2]
[331993393,1720927842699,-362.58361691,0.00024657,2]
[331993394,1720927842709,-500.0,0.00024657,2]
[331993395,1720927842719,-500.0,0.00024657,2]
[331993396,1720927842729,-500.0,0.00024657,2]
[331993397,1720927842738,-500.0,0.00024657,2]
[331993398,1720927842748,-623.66,0.00024657,2]
[331993399,1720927842757,-500.0,0.00024657,2]
[331993400,1720927842767,-500.0,0.00024657,2]
[331993401,1720927842777,-500.0,0.00024657,2]
[331993402,1720927842786,-500.0,0.00024657,2]
[331993403,1720927842797,-503.44894369,0.00024657,2]
[331993404,1720927842806,-500.0,0.00024657,2]
[331993405,1720927842816,-500.0,0.00024657,2]
[331993406,1720927842825,-469.83126249,0.00024657,2]
[331993407,1720927842835,-510.06740057,0.00024657,2]
[331993408,1720927842844,-500.0,0.00024657,2]
[331993409,1720927842853,-500.0,0.00024657,2]
[331993410,1720927842863,-500.0,0.00024657,2]
[331993411,1720927842872,-548.28679358,0.00024657,2]
[331993412,1720927842881,-500.0,0.00024657,2]
[331993413,1720927842890,-500.0,0.00024657,2]
[331993414,1720927842899,-575.85609045,0.00024657,2]
[331993415,1720927842908,-500.0,0.00024657,2]
[331993416,1720927842918,-500.0,0.00024657,2]
[331993417,1720927842928,-500.0,0.00024657,2]
[331993418,1720927842937,-500.0,0.00024657,2]
[331993419,1720927843018,-500.0,0.00024657,2]
[331993420,1720927843028,-500.0,0.00024657,2]
[331993421,1720927843037,-500.0,0.00024657,2]
[331993422,1720927843047,-500.0,0.00024657,2]
[331993423,1720927843056,-500.0,0.00024657,2]
[331993424,1720927843065,-548.37066457,0.00024657,2]
[331993425,1720927843075,-500.0,0.00024657,2]
[331993426,1720927843083,-500.0,0.00024657,2]
[331993427,1720927843093,-500.0,0.00024657,2]
[331993428,1720927843102,-504.42242026,0.00024657,2]
[331993429,1720927843111,-500.0,0.00024657,2]
[331993430,1720927843120,-500.0,0.00024657,2]
[331993431,1720927843129,-500.0,0.00024657,2]
[331993432,1720927843138,-500.0,0.00024657,2]
[331993433,1720927843147,-500.0,0.00024657,2]
[331993434,1720927843156,-500.0,0.00024657,2]
[331993435,1720927843165,-500.0,0.00024657,2]
[331993436,1720927843175,-500.0,0.00024657,2]
[331993437,1720927843184,-500.0,0.00024657,2]
[331993438,1720927843193,-500.0,0.00024657,2]
[331993439,1720927843202,-500.0,0.00024657,2]
[331993440,1720927843211,-500.0,0.00024657,2]
[331993441,1720927843220,-500.0,0.00024657,2]
[331993442,1720927843230,-500.0,0.00024657,2]
[331993443,1720927843239,-500.0,0.00024657,2]
[331993444,1720927843249,-266.82401676,0.00024657,2]
[331993445,1720927843259,-473.72930774,0.00024657,2]
[331993446,1720927843268,-500.0,0.00024657,2]
[331993447,1720927843277,-15632.62,0.00024657,2]
[331993448,1720927843286,-500.0,0.00024657,2]
[331993449,1720927843295,-500.0,0.00024657,2]
[331993450,1720927843305,-500.0,0.00024657,2]
[331993451,1720927843314,-500.0,0.00024657,2]
[331993452,1720927843323,-233.59619079,0.00024657,2]
[331993453,1720927843333,-1960.32,0.00024657,2]
[331993454,1720927843342,-546.37310169,0.00024657,2]
[331993455,1720927843351,-500.0,0.00024657,2]
[331993456,1720927843360,-609.1707801,0.00024657,2]
[331993457,1720927843369,-500.0,0.00024657,2]
[331993458,1720927843379,-500.0,0.00024657,2]
[331993459,1720927843389,-505.30438848,0.00024657,2]
[331993460,1720927843398,-500.0,0.00024657,2]
[331993461,1720927843407,-500.0,0.00024657,2]
[331993462,1720927843416,-500.0,0.00024657,2]
[331993463,1720927843426,-406.15292349,0.00024657,2]
[331993464,1720927843435,-500.0,0.00024657,2]
[331993465,1720927843444,-500.0,0.00024657,2]
[331993466,1720927843453,-500.0,0.00024657,2]
[331993467,1720927843463,-500.0,0.00024657,2]
[331993468,1720927843473,-500.0,0.00024657,2]
[331993469,1720927843482,-500.0,0.00024657,2]
[331993470,1720927843492,-500.0,0.00024657,2]
[331993471,1720927843501,-500.0,0.00024657,2]
[331993472,1720927843513,-500.0,0.00024657,2]
[331993473,1720927843524,-504.36589478,0.00024657,2]
[331993474,1720927843533,-500.0,0.00024657,2]
[331993475,1720927843542,-500.0,0.00024657,2]
[331993476,1720927843553,-418.09076287,0.00024657,2]
[331993477,1720927843562,-166.666666,0.00024683,2]
[331993478,1720927843571,-156.14479344,0.00024767,2]
[331993479,1720927843581,-374.8626273,0.00024767,2]
[331993480,1720927843591,-500.0,0.00024767,2]
[331993481,1720927843601,-441.71712929,0.00024767,2]
[331993482,1720927843611,-2778.67346404,0.00024768,2]
[331993483,1720927843620,-12427.35532613,0.000248,2]
[331993498,1720927845134,-500.0,0.00024657,2]
[331993499,1720927845144,-416.09192157,0.000248,2]
[331993509,1720928565207,284.01854297,0.00016255,2]
[331993513,1720928622754,157.30554026,0.00014999,2]
[331993517,1720928806533,212.564619,0.00014999,2]
[331993518,1720928839143,-154.57491897,0.00016255,2]
[331993519,1720928839165,-154.56721181,0.00016255,2]
[331993520,1720928839187,-124.68474952,0.00018798,2]
[331993521,1720928844115,-66.58872743,0.00018798,2]
[331993522,1720928844136,-750.0,0.00021096,2]
[331993523,1720928844163,-187.361242,0.00022284,2]
[331993524,1720928844187,-161.736775,0.00022461,2]
[331993525,1720928844213,-490.69041466,0.00022557,2]
[331993526,1720928844236,-250.0,0.0002261,2]
[331993527,1720928844259,-300.0,0.00022958,2]
[331993528,1720928844282,-4757.54245039,0.00022959,2]
[331993529,1720928850103,-452.48864114,0.00016255,2]
[331993530,1720928850127,-603.7261921,0.00022959,2]
[331993536,1720928948132,-154.57491897,0.00016255,2]
[331993537,1720928955183,154.56721181,0.00016255,2]
[331993538,1720928961106,-212.564619,0.00020859,2]
[331993539,1720928962099,-114.5623241,0.00020859,2]
[331993545,1720929021861,526.12337644,0.00021095,2]
[331993662,1720929038400,-300.0,0.00022901,2]
[331993664,1720929038411,-300.0,0.00022901,2]
[331993667,1720929038422,-4614.5179529,0.00022902,2]
[331993669,1720929038434,-3495.27564017,0.00022902,2]
[331993671,1720929038448,-10640.79733218,0.00022902,2]
[331993674,1720929038461,-373.19802182,0.00022902,2]
[331993676,1720929038472,-1544.13388645,0.00022902,2]
[331993679,1720929038486,-299.88787057,0.00022902,2]
[331993682,1720929038512,-1782.72,0.00022902,2]
[331993717,1720929040552,-2149.46929591,0.00022902,2]
[331993718,1720929040562,-261.65035706,0.00022959,2]
[331993719,1720929040571,-1278.04794089,0.00023,2]
[331993720,1720929040581,-187.361242,0.00023445,2]
[331993722,1720929040590,-1452.98396301,0.00023858,2]
[331993724,1720929040600,-153.0,0.00023958,2]
[331993726,1720929040609,-153.0,0.00023958,2]
[331993728,1720929040620,-153.0,0.00023958,2]
[331993730,1720929040630,-153.0,0.00023958,2]
[331993732,1720929040640,-153.0,0.00023958,2]
[331993734,1720929040650,-351.6282245,0.00024078,2]
[331993736,1720929040660,-500.0,0.0002413,2]
[331993738,1720929040669,-153.0,0.00024178,2]
[331993740,1720929040679,-364.18737546,0.00024458,2]
[331993742,1720929040689,-500.0,0.00024556,2]
[331993744,1720929040700,-494.14551838,0.00024556,2]
[331993746,1720929040710,-217.84990473,0.00024556,2]
[331993748,1720929040719,-228.58836225,0.00024556,2]
[331993750,1720929040729,-3599.70787592,0.00024557,2]
[331993752,1720929040738,-5064.04389572,0.00024595,2]
[331993755,1720929040748,-5276.16555904,0.00024647,3]
[331993756,1720929040757,-262.40383911,0.00024656,2]
[331993759,1720929040766,-500.0,0.00024656,2]
[331993761,1720929040776,-159.20199051,0.00024656,2]
[331993763,1720929040786,-500.0,0.00024657,2]
[331993765,1720929040795,-500.0,0.00024657,2]
[331993767,1720929040804,-500.0,0.00024657,2]
[331993769,1720929040814,-507.20502821,0.00024657,2]
[331993771,1720929040823,-500.0,0.00024657,2]
[331993773,1720929040833,-500.0,0.00024657,2]
[331993775,1720929040842,-615.02,0.00024657,2]
[331993777,1720929040851,-500.0,0.00024657,2]
[331993779,1720929040865,-500.0,0.00024657,2]
[331993781,1720929040875,-500.0,0.00024657,2]
[331993783,1720929040884,-505.46669651,0.00024657,2]
[331993785,1720929040894,-500.0,0.00024657,2]
[331993787,1720929040905,-500.0,0.00024657,2]
[331993789,1720929040914,-500.0,0.00024657,2]
[331993791,1720929040924,-500.0,0.00024657,2]
[331993793,1720929040934,-627.93156675,0.00024657,2]
[331993795,1720929040944,-500.0,0.00024657,2]
[331993797,1720929040954,-482.10729164,0.00024657,2]
[331993799,1720929040963,-500.0,0.00024657,2]
[331993801,1720929040972,-511.48642617,0.00024657,2]
[331993803,1720929040982,-500.0,0.00024657,2]
[331993805,1720929040991,-500.0,0.00024657,2]
[331993807,1720929041001,-500.0,0.00024657,2]
[331993809,1720929041010,-500.0,0.00024657,2]
[331993811,1720929041020,-500.0,0.00024657,2]
[331993813,1720929041030,-500.0,0.00024657,2]
[331993815,1720929041040,-500.0,0.00024657,2]
[331993817,1720929041049,-500.0,0.00024657,2]
[331993819,1720929041058,-500.0,0.00024657,2]
[331993832,1720929041173,-515.24160983,0.00024657,2]
[331993834,1720929041184,-500.0,0.00024657,2]
[331993836,1720929041194,-1054.52,0.00024657,2]
[331993838,1720929041204,-500.0,0.00024657,2]
[331993840,1720929041214,-500.0,0.00024657,2]
[331993842,1720929041223,-500.0,0.00024657,2]
[331993844,1720929041233,-505.2262162,0.00024657,2]
[331993846,1720929041242,-500.0,0.00024657,2]
[331993848,1720929041252,-500.0,0.00024657,2]
[331993850,1720929041261,-500.0,0.00024657,2]
[331993852,1720929041271,-645.20884031,0.00024657,2]
[331993854,1720929041282,-532.63564664,0.00024657,2]
[331993856,1720929041292,-500.0,0.00024657,2]
[331993858,1720929041301,-500.0,0.00024657,2]
[331993860,1720929041311,-500.0,0.00024657,2]
[331993862,1720929041321,-500.0,0.00024657,2]
[331993864,1720929041330,-500.0,0.00024657,2]
[331993866,1720929041340,-500.0,0.00024657,2]
[331993868,1720929041350,-500.0,0.00024657,2]
[331993870,1720929041359,-500.0,0.00024657,2]
[331993872,1720929041369,-500.0,0.00024657,2]
[331993874,1720929041378,-500.0,0.00024657,2]
[331993876,1720929041388,-500.0,0.00024657,2]
[331993878,1720929041398,-500.0,0.00024657,2]
[331993880,1720929041407,-500.0,0.00024657,2]
[331993882,1720929041417,-500.0,0.00024657,2]
[331993884,1720929041426,-500.0,0.00024657,2]
[331993886,1720929041436,-500.0,0.00024657,2]
[331993888,1720929041445,-500.0,0.00024657,2]
[331993890,1720929041455,-500.0,0.00024657,2]
[331993892,1720929041465,-500.0,0.00024657,2]
[331993894,1720929041474,-500.0,0.00024657,2]
[331993896,1720929041483,-500.0,0.00024657,2]
[331993898,1720929041493,-500.0,0.00024657,2]
[331993900,1720929041502,-500.0,0.00024657,2]
[331993903,1720929041512,-500.0,0.00024657,2]
[331993904,1720929041521,-500.0,0.00024657,2]
[331993907,1720929041530,-500.0,0.00024657,2]
[331993909,1720929041540,-500.0,0.00024657,2]
[331993911,1720929041549,-500.0,0.00024657,2]
[331993913,1720929041559,-500.0,0.00024657,2]
[331993915,1720929041568,-500.0,0.00024657,2]
[331993917,1720929041577,-516.23277355,0.00024657,2]
[331993919,1720929041586,-500.0,0.00024657,2]
[331993921,1720929041596,-500.0,0.00024657,2]
[331993923,1720929041605,-500.0,0.00024657,2]
[331993925,1720929041615,-500.0,0.00024657,2]
[331993927,1720929041625,-500.0,0.00024657,2]
[331993929,1720929041634,-500.0,0.00024657,2]
[331993931,1720929041643,-500.0,0.00024657,2]
[331993933,1720929041652,-500.0,0.00024657,2]
[331993935,1720929041661,-500.0,0.00024657,2]
[331993937,1720929041671,-331.92781499,0.00024657,2]
[331993939,1720929041680,-500.0,0.00024657,2]
[331993941,1720929041689,-500.0,0.00024657,2]
[331993943,1720929041699,-519.51414814,0.00024657,2]
[331993945,1720929041709,-500.0,0.00024657,2]
[331993947,1720929041719,-500.0,0.00024657,2]
[331993949,1720929041729,-500.0,0.00024657,2]
[331993951,1720929041739,-500.0,0.00024657,2]
[331993953,1720929041748,-500.0,0.00024657,2]
[331993955,1720929041758,-500.0,0.00024657,2]
[331993957,1720929041768,-500.0,0.00024657,2]
[331993959,1720929041777,-504.4478611,0.00024657,2]
[331993961,1720929041787,-500.0,0.00024657,2]
[331993963,1720929041797,-500.0,0.00024657,2]
[331993965,1720929041807,-500.0,0.00024657,2]
[331993967,1720929041816,-500.0,0.00024657,2]
[331993969,1720929041826,-500.0,0.00024657,2]
[331993971,1720929041836,-500.0,0.00024657,2]
[331993973,1720929041845,-500.0,0.00024657,2]
[331993975,1720929041856,-500.0,0.00024657,2]
[331993978,1720929041868,-537.32479323,0.00024657,2]
[331993980,1720929041878,-500.0,0.00024657,2]
[331993982,1720929041887,-500.0,0.00024657,2]
[331993984,1720929041897,-558.33,0.00024657,2]
[331993986,1720929041907,-500.0,0.00024657,2]
[331993988,1720929041917,-500.0,0.00024657,2]
[331993990,1720929041933,-500.0,0.00024657,2]
[331993993,1720929041948,-500.0,0.00024657,2]
[331993995,1720929041959,-500.0,0.00024657,2]
[331993997,1720929041969,-500.0,0.00024657,2]
[331993999,1720929041979,-500.0,0.00024657,2]
[331994001,1720929041989,-500.0,0.00024657,2]
[331994003,1720929041999,-400.31536724,0.00024657,2]
[331994005,1720929042009,-506.64447659,0.00024657,2]
[331994007,1720929042020,-500.0,0.00024657,2]
[331994009,1720929042031,-500.0,0.00024657,2]
[331994012,1720929042042,-500.0,0.00024657,2]
[331994014,1720929042054,-500.0,0.00024657,2]
[331994016,1720929042066,-500.0,0.00024657,2]
[331994018,1720929042079,-317.07586392,0.00024657,2]